[Event "*** Titled Tuesday Blitz"]
[Site "Chess.com"]
[Date "2019.02.05"]
[Round "8"]
[White "Nathan_Filgueiras"]
[Black "saraswathii"]
[Result "1-0"]
[WhiteElo "2285"]
[BlackElo "2259"]
[TimeControl "180+2"]
[EndTime "14:55:36 PST"]
[Termination "Nathan_Filgueiras won by resignation"]

1. e4 {[%clk 0:03:01.9]} 1... c5 {[%clk 0:03:00.3]} 2. Nf3 {[%clk 0:02:59.2]}
2... e6 {[%clk 0:03:01.1]} 3. d4 {[%clk 0:02:59.4]} 3... cxd4 {[%clk 0:03:02]}
4. Nxd4 {[%clk 0:03:01.3]} 4... Nf6 {[%clk 0:03:02.8]} 5. Nc3 {[%clk 0:03:02.2]}
5... Nc6 {[%clk 0:03:03.3]} 6. Be3 {[%clk 0:02:59.2]} 6... Bb4 {[%clk
0:03:03.7]} 7. Nxc6 {[%clk 0:02:59.7]} 7... bxc6 {[%clk 0:03:04.2]} 8. e5 {[%clk
0:03:00.6]} 8... Nd5 {[%clk 0:03:04.3]} 9. Bd2 {[%clk 0:03:01.9]} 9... Nxc3
{[%clk 0:02:50.7]} 10. bxc3 {[%clk 0:03:02.8]} 10... Bc5 {[%clk 0:02:44]} 11.
Qg4 {[%clk 0:03:01.6]} 11... Kf8 {[%clk 0:02:36.9]} 12. Bd3 {[%clk 0:02:53.3]}
12... d6 {[%clk 0:02:35.3]} 13. exd6 {[%clk 0:02:49.5]} 13... Qxd6 {[%clk
0:02:32.7]} 14. O-O {[%clk 0:02:36.5]} 14... e5 {[%clk 0:02:32.8]} 15. Qe2
{[%clk 0:02:36.6]} 15... Bd7 {[%clk 0:02:27.1]} 16. Rad1 {[%clk 0:02:34.6]}
16... Re8 {[%clk 0:02:22.3]} 17. Be3 {[%clk 0:02:34.2]} 17... Bxe3 {[%clk
0:02:20]} 18. Qxe3 {[%clk 0:02:35.4]} 18... Qe7 {[%clk 0:01:57.5]} 19. Qxa7
{[%clk 0:02:31.5]} 19... Be6 {[%clk 0:01:48.9]} 20. Qa6 {[%clk 0:02:08.9]} 20...
Qc5 {[%clk 0:01:45.5]} 21. Be4 {[%clk 0:01:59.3]} 21... Qxc3 {[%clk 0:01:15.2]}
22. Bxc6 {[%clk 0:01:51.4]} 22... Rc8 {[%clk 0:00:57.7]} 23. Bb7 {[%clk
0:01:31.4]} 23... Re8 {[%clk 0:00:53.3]} 24. Qd6+ {[%clk 0:01:23.7]} 24... Kg8
{[%clk 0:00:53.6]} 25. Qe7 {[%clk 0:01:05.3]} 1-0

[Event "*** Titled Tuesday Blitz"]
[Site "Chess.com"]
[Date "2019.02.05"]
[Round "8"]
[White "goodluck06"]
[Black "Keaton87"]
[Result "0-1"]
[WhiteElo "2465"]
[BlackElo "2543"]
[TimeControl "180+2"]
[EndTime "14:55:46 PST"]
[Termination "Keaton87 won by resignation"]

1. Nf3 {[%clk 0:03:01.9]} 1... d5 {[%clk 0:03:00.6]} 2. g3 {[%clk 0:03:02.8]}
2... Nf6 {[%clk 0:03:00.7]} 3. Bg2 {[%clk 0:03:04]} 3... Bf5 {[%clk 0:03:00.9]}
4. O-O {[%clk 0:03:05.2]} 4... e6 {[%clk 0:03:02.3]} 5. b3 {[%clk 0:03:06.7]}
5... Be7 {[%clk 0:03:02.7]} 6. Bb2 {[%clk 0:03:08.1]} 6... O-O {[%clk
0:03:03.9]} 7. d3 {[%clk 0:03:07.8]} 7... h6 {[%clk 0:03:03.9]} 8. c4 {[%clk
0:03:08.2]} 8... c6 {[%clk 0:03:04.6]} 9. Nbd2 {[%clk 0:03:05.8]} 9... Nbd7
{[%clk 0:03:04.7]} 10. cxd5 {[%clk 0:03:06.5]} 10... exd5 {[%clk 0:03:03.7]} 11.
Nd4 {[%clk 0:03:07]} 11... Bg6 {[%clk 0:03:02.2]} 12. Bh3 {[%clk 0:03:08.7]}
12... a5 {[%clk 0:02:59.4]} 13. a4 {[%clk 0:02:53.1]} 13... Nc5 {[%clk 0:02:57]}
14. N2f3 {[%clk 0:02:48.4]} 14... Nfd7 {[%clk 0:02:54.9]} 15. Rc1 {[%clk
0:02:47.3]} 15... Bf6 {[%clk 0:02:54.7]} 16. Ba3 {[%clk 0:02:45.9]} 16... Be7
{[%clk 0:02:45.7]} 17. Bb2 {[%clk 0:02:32.5]} 17... Bf6 {[%clk 0:02:46.2]} 18.
Ba3 {[%clk 0:02:33.7]} 18... Be7 {[%clk 0:02:47.1]} 19. Qc2 {[%clk 0:02:29]}
19... Na6 {[%clk 0:02:46]} 20. Bb2 {[%clk 0:02:29.1]} 20... Nb4 {[%clk
0:02:46.7]} 21. Qb1 {[%clk 0:02:30.5]} 21... Bf6 {[%clk 0:02:45.3]} 22. Rfe1
{[%clk 0:02:19]} 22... Re8 {[%clk 0:02:37.2]} 23. Bc3 {[%clk 0:02:18.4]} 23...
Ne5 {[%clk 0:02:33.4]} 24. Nxe5 {[%clk 0:02:06.2]} 24... Bxe5 {[%clk 0:02:34]}
25. Qa1 {[%clk 0:02:01]} 25... Bf6 {[%clk 0:02:31]} 26. Bf1 {[%clk 0:01:52.1]}
26... Qb6 {[%clk 0:02:29.8]} 27. Nf3 {[%clk 0:01:50.2]} 27... Bxc3 {[%clk
0:02:29.3]} 28. Rxc3 {[%clk 0:01:51.1]} 28... Re7 {[%clk 0:02:20.7]} 29. Rcc1
{[%clk 0:01:48.6]} 29... Rae8 {[%clk 0:02:19.7]} 30. Nd4 {[%clk 0:01:33.3]}
30... Qc7 {[%clk 0:02:18.6]} 31. Red1 {[%clk 0:01:22.8]} 31... Qd6 {[%clk
0:02:19.5]} 32. e3 {[%clk 0:01:21.4]} 32... h5 {[%clk 0:02:10]} 33. h4 {[%clk
0:01:21.6]} 33... Qf6 {[%clk 0:02:08]} 34. Qb2 {[%clk 0:01:16.8]} 34... b6
{[%clk 0:02:02.1]} 35. Qd2 {[%clk 0:01:17.6]} 35... c5 {[%clk 0:02:02.8]} 36.
Nb5 {[%clk 0:01:17.5]} 36... d4 {[%clk 0:01:58.5]} 37. e4 {[%clk 0:01:12.4]}
37... Qe6 {[%clk 0:01:37.6]} 38. Qb2 {[%clk 0:01:06.8]} 38... f5 {[%clk
0:01:32.3]} 39. exf5 {[%clk 0:01:07.8]} 39... Bxf5 {[%clk 0:01:31.7]} 40. Na3
{[%clk 0:01:04.4]} 40... Bh3 {[%clk 0:01:24]} 41. Bxh3 {[%clk 0:00:50.1]} 41...
Qxh3 {[%clk 0:01:25.9]} 42. Nc4 {[%clk 0:00:51]} 42... Re2 {[%clk 0:01:24.7]}
43. Rd2 {[%clk 0:00:52.2]} 43... Re1+ {[%clk 0:01:25.5]} 0-1

[Event "*** Titled Tuesday Blitz"]
[Site "Chess.com"]
[Date "2019.02.05"]
[Round "8"]
[White "jsdbv18"]
[Black "Kostya_Nikologorskiy"]
[Result "0-1"]
[WhiteElo "2473"]
[BlackElo "2430"]
[TimeControl "180+2"]
[EndTime "14:55:55 PST"]
[Termination "Kostya_Nikologorskiy won by resignation"]

1. e4 {[%clk 0:03:01.9]} 1... c6 {[%clk 0:02:59.4]} 2. Nf3 {[%clk 0:03:03.2]}
2... d5 {[%clk 0:02:59.6]} 3. Nc3 {[%clk 0:03:04.8]} 3... d4 {[%clk 0:02:57.9]}
4. Ne2 {[%clk 0:03:05.2]} 4... e6 {[%clk 0:02:48.5]} 5. Nexd4 {[%clk 0:03:04.8]}
5... c5 {[%clk 0:02:49.7]} 6. Ne2 {[%clk 0:03:02.6]} 6... Nc6 {[%clk 0:02:49.1]}
7. Ng3 {[%clk 0:03:03.8]} 7... Nf6 {[%clk 0:02:46.8]} 8. Bc4 {[%clk 0:03:03.4]}
8... h5 {[%clk 0:02:47.6]} 9. d3 {[%clk 0:03:01.9]} 9... h4 {[%clk 0:02:48]} 10.
Ne2 {[%clk 0:03:02.4]} 10... h3 {[%clk 0:02:49.1]} 11. g3 {[%clk 0:03:03.1]}
11... Be7 {[%clk 0:02:40.9]} 12. O-O {[%clk 0:02:59.5]} 12... a6 {[%clk
0:02:39]} 13. a4 {[%clk 0:03:00.4]} 13... e5 {[%clk 0:02:36]} 14. Ng5 {[%clk
0:02:55.3]} 14... O-O {[%clk 0:02:36.4]} 15. c3 {[%clk 0:02:48.1]} 15... Rb8
{[%clk 0:02:04.8]} 16. f4 {[%clk 0:02:45.7]} 16... Bg4 {[%clk 0:02:02.3]} 17.
Be3 {[%clk 0:02:33.1]} 17... b5 {[%clk 0:02:02]} 18. Ba2 {[%clk 0:02:30.5]}
18... c4 {[%clk 0:02:01.7]} 19. d4 {[%clk 0:02:21.7]} 19... exd4 {[%clk
0:01:55.1]} 20. cxd4 {[%clk 0:02:22.7]} 20... Nb4 {[%clk 0:01:39.3]} 21. Bb1
{[%clk 0:02:19.7]} 21... Re8 {[%clk 0:01:27.7]} 22. Qd2 {[%clk 0:02:16.1]} 22...
Nd3 {[%clk 0:01:12.4]} 23. Bxd3 {[%clk 0:02:11.7]} 23... cxd3 {[%clk 0:01:13.6]}
24. Qxd3 {[%clk 0:02:08.4]} 24... bxa4 {[%clk 0:01:14.8]} 25. e5 {[%clk
0:02:04.6]} 25... Rb3 {[%clk 0:01:10.7]} 26. Nc3 {[%clk 0:02:03.4]} 26... Qa8
{[%clk 0:00:50.4]} 27. Rf2 {[%clk 0:02:03.1]} 27... g6 {[%clk 0:00:44.1]} 28.
exf6 {[%clk 0:02:03.7]} 28... Bxf6 {[%clk 0:00:46]} 29. Rxa4 {[%clk 0:01:49.5]}
29... Bf5 {[%clk 0:00:43.3]} 30. Qxa6 {[%clk 0:01:38.9]} 30... Qxa6 {[%clk
0:00:39.8]} 31. Rxa6 {[%clk 0:01:39.9]} 31... Bxg5 {[%clk 0:00:40.8]} 32. fxg5
{[%clk 0:01:26.8]} 32... Rxe3 {[%clk 0:00:41.3]} 33. Nd5 {[%clk 0:01:22.2]}
33... Re1+ {[%clk 0:00:35.2]} 34. Rf1 {[%clk 0:01:21.6]} 34... Rxf1+ {[%clk
0:00:37.1]} 35. Kxf1 {[%clk 0:01:22.5]} 35... Bd3+ {[%clk 0:00:39]} 0-1

[Event "*** Titled Tuesday Blitz"]
[Site "Chess.com"]
[Date "2019.02.05"]
[Round "8"]
[White "MatthewG-p4p"]
[Black "Zhuu96"]
[Result "1-0"]
[WhiteElo "2703"]
[BlackElo "2845"]
[TimeControl "180+2"]
[EndTime "14:56:01 PST"]
[Termination "MatthewG-p4p won by resignation"]

1. c4 {[%clk 0:02:59.1]} 1... g6 {[%clk 0:02:58.4]} 2. Nc3 {[%clk 0:03:00.1]}
2... Bg7 {[%clk 0:02:59.6]} 3. g3 {[%clk 0:03:01.7]} 3... Nf6 {[%clk 0:03:00]}
4. Bg2 {[%clk 0:03:02.9]} 4... O-O {[%clk 0:03:01.5]} 5. d3 {[%clk 0:03:04.4]}
5... c6 {[%clk 0:03:01.5]} 6. e3 {[%clk 0:03:02.9]} 6... d5 {[%clk 0:03:02.6]}
7. cxd5 {[%clk 0:02:57.1]} 7... cxd5 {[%clk 0:03:03.7]} 8. Nge2 {[%clk
0:02:58.6]} 8... e5 {[%clk 0:03:04.5]} 9. O-O {[%clk 0:02:54.3]} 9... Nc6 {[%clk
0:03:05.4]} 10. d4 {[%clk 0:02:44.4]} 10... e4 {[%clk 0:03:06.3]} 11. a3 {[%clk
0:02:44.7]} 11... h5 {[%clk 0:03:05.1]} 12. b4 {[%clk 0:02:43.5]} 12... h4
{[%clk 0:03:05.7]} 13. Bb2 {[%clk 0:02:41.4]} 13... Ne7 {[%clk 0:02:57.7]} 14.
Rc1 {[%clk 0:02:40.9]} 14... hxg3 {[%clk 0:02:54.5]} 15. hxg3 {[%clk 0:02:32.5]}
15... Bg4 {[%clk 0:02:52.2]} 16. Qb3 {[%clk 0:02:28.6]} 16... Bf3 {[%clk
0:02:47]} 17. Nf4 {[%clk 0:02:25.3]} 17... Qd7 {[%clk 0:02:47.5]} 18. Bxf3
{[%clk 0:02:01.3]} 18... exf3 {[%clk 0:02:48.2]} 19. Qd1 {[%clk 0:02:02.7]}
19... g5 {[%clk 0:02:49.2]} 20. Nd3 {[%clk 0:02:02.6]} 20... Qf5 {[%clk
0:02:47.1]} 21. Re1 {[%clk 0:01:45]} 21... Ng6 {[%clk 0:02:30.7]} 22. Nc5 {[%clk
0:01:31.6]} 22... g4 {[%clk 0:02:29.9]} 23. Qd3 {[%clk 0:01:32.3]} 23... Qh5
{[%clk 0:02:30.3]} 24. e4 {[%clk 0:01:33.1]} 24... dxe4 {[%clk 0:02:25.3]} 25.
N3xe4 {[%clk 0:01:33.3]} 25... Nd5 {[%clk 0:02:26.5]} 26. Qf1 {[%clk 0:01:22.1]}
26... Kh7 {[%clk 0:02:27.4]} 27. Nd7 {[%clk 0:01:17.6]} 27... Rh8 {[%clk
0:02:25.1]} 28. Rc5 {[%clk 0:01:17.4]} 28... Qh6 {[%clk 0:01:54.5]} 29. Rxd5
{[%clk 0:01:10]} 29... Kg8 {[%clk 0:01:54.9]} 30. Rh5 {[%clk 0:01:11.2]} 30...
Qxh5 {[%clk 0:01:51.5]} 31. Ndf6+ {[%clk 0:01:11.3]} 31... Bxf6 {[%clk
0:01:43.3]} 32. Nxf6+ {[%clk 0:01:12.1]} 32... Kg7 {[%clk 0:01:44.7]} 33. Nxh5+
{[%clk 0:01:12.9]} 33... Rxh5 {[%clk 0:01:45.7]} 34. d5+ {[%clk 0:01:14.3]}
34... f6 {[%clk 0:01:46.8]} 35. Qc4 {[%clk 0:01:04.5]} 35... Rah8 {[%clk
0:01:43.1]} 36. Qc7+ {[%clk 0:01:04.9]} 36... Kg8 {[%clk 0:01:22.4]} 37. Qc8+
{[%clk 0:00:53.8]} 37... Kg7 {[%clk 0:01:20.1]} 38. Qd7+ {[%clk 0:00:53.2]}
38... Kg8 {[%clk 0:01:19.3]} 39. Re8+ {[%clk 0:00:50.3]} 39... Nf8 {[%clk
0:01:14.1]} 40. Qe6+ {[%clk 0:00:44.4]} 40... Kg7 {[%clk 0:01:13.6]} 41. Re7+
{[%clk 0:00:44.9]} 1-0

[Event "*** Titled Tuesday Blitz"]
[Site "Chess.com"]
[Date "2019.02.05"]
[Round "8"]
[White "scaryninja"]
[Black "MFguimaraes"]
[Result "1-0"]
[WhiteElo "2414"]
[BlackElo "2275"]
[TimeControl "180+2"]
[EndTime "14:56:02 PST"]
[Termination "scaryninja won on time"]

1. e4 {[%clk 0:03:01.9]} 1... e5 {[%clk 0:03:00.8]} 2. Nf3 {[%clk 0:03:02.9]}
2... Nc6 {[%clk 0:03:01]} 3. Bc4 {[%clk 0:03:04.4]} 3... Nf6 {[%clk 0:03:02.1]}
4. d3 {[%clk 0:03:04.9]} 4... h6 {[%clk 0:03:02.2]} 5. O-O {[%clk 0:03:05.3]}
5... g5 {[%clk 0:03:02.4]} 6. d4 {[%clk 0:02:59.1]} 6... g4 {[%clk 0:02:58.8]}
7. Nxe5 {[%clk 0:02:56.7]} 7... d5 {[%clk 0:02:51.4]} 8. exd5 {[%clk 0:02:49.5]}
8... Nxd5 {[%clk 0:02:51.8]} 9. Re1 {[%clk 0:02:19.7]} 9... Be7 {[%clk
0:02:46.8]} 10. Nc3 {[%clk 0:02:02.8]} 10... Nxe5 {[%clk 0:02:23.9]} 11. Bxd5
{[%clk 0:01:41.7]} 11... Ng6 {[%clk 0:02:15]} 12. Qd3 {[%clk 0:01:27.1]} 12...
c6 {[%clk 0:02:01.3]} 13. Bb3 {[%clk 0:01:21.7]} 13... Kf8 {[%clk 0:01:58.3]}
14. d5 {[%clk 0:01:06.3]} 14... Bd7 {[%clk 0:01:40.1]} 15. Be3 {[%clk
0:00:53.6]} 15... Bf6 {[%clk 0:01:22.7]} 16. dxc6 {[%clk 0:00:39.1]} 16... Bxc6
{[%clk 0:01:21]} 17. Qc4 {[%clk 0:00:39.5]} 17... Ne5 {[%clk 0:01:17.8]} 18.
Bc5+ {[%clk 0:00:37.3]} 18... Kg7 {[%clk 0:01:06.3]} 19. Rxe5 {[%clk 0:00:35.9]}
19... Qc7 {[%clk 0:01:07.9]} 20. Rf5 {[%clk 0:00:28.9]} 20... h5 {[%clk
0:01:06.6]} 21. Bd4 {[%clk 0:00:27.1]} 21... Bxd4 {[%clk 0:01:05.6]} 22. Rxf7+
{[%clk 0:00:26.7]} 1-0

[Event "*** Titled Tuesday Blitz"]
[Site "Chess.com"]
[Date "2019.02.05"]
[Round "8"]
[White "volcanoexplorer"]
[Black "jamengrand"]
[Result "1-0"]
[WhiteElo "2360"]
[BlackElo "2271"]
[TimeControl "180+2"]
[EndTime "14:56:28 PST"]
[Termination "volcanoexplorer won by resignation"]

1. e4 {[%clk 0:03:01.9]} 1... c5 {[%clk 0:02:29.8]} 2. Nf3 {[%clk 0:03:02.9]}
2... d6 {[%clk 0:02:30.2]} 3. d4 {[%clk 0:03:04]} 3... Nf6 {[%clk 0:02:31.3]} 4.
Nc3 {[%clk 0:03:04.5]} 4... cxd4 {[%clk 0:02:31.4]} 5. Nxd4 {[%clk 0:03:05.4]}
5... a6 {[%clk 0:02:32.7]} 6. h3 {[%clk 0:03:05.7]} 6... e6 {[%clk 0:02:29.4]}
7. g4 {[%clk 0:03:06]} 7... d5 {[%clk 0:02:30.7]} 8. Nde2 {[%clk 0:03:04.1]}
8... Nxe4 {[%clk 0:02:21.1]} 9. Nxe4 {[%clk 0:03:04.6]} 9... dxe4 {[%clk
0:02:22.4]} 10. Qxd8+ {[%clk 0:03:06.2]} 10... Kxd8 {[%clk 0:02:24]} 11. Bg2
{[%clk 0:03:07.7]} 11... f5 {[%clk 0:02:25.2]} 12. Be3 {[%clk 0:02:39.4]} 12...
Nc6 {[%clk 0:02:19.4]} 13. O-O-O+ {[%clk 0:02:31.7]} 13... Ke8 {[%clk
0:02:20.3]} 14. gxf5 {[%clk 0:02:30.9]} 14... exf5 {[%clk 0:02:20.8]} 15. Nf4
{[%clk 0:02:29.4]} 15... g6 {[%clk 0:02:17.8]} 16. Nd5 {[%clk 0:02:30.2]} 16...
Kf7 {[%clk 0:02:16.2]} 17. Nb6 {[%clk 0:02:22.5]} 17... Rb8 {[%clk 0:01:59.4]}
18. Bf4 {[%clk 0:02:23.4]} 18... Be6 {[%clk 0:01:57.3]} 19. Bxb8 {[%clk
0:02:19]} 19... Bh6+ {[%clk 0:01:58.3]} 20. Kb1 {[%clk 0:02:15]} 20... Rxb8
{[%clk 0:01:59]} 21. Nd7 {[%clk 0:02:13.3]} 21... Rc8 {[%clk 0:01:53.3]} 22. Nc5
{[%clk 0:02:13.4]} 22... Bc4 {[%clk 0:01:22.4]} 23. Nxb7 {[%clk 0:02:10]} 23...
Bf4 {[%clk 0:00:57.3]} 24. b3 {[%clk 0:01:57.9]} 24... Be6 {[%clk 0:00:47.7]}
25. Nd6+ {[%clk 0:01:56.9]} 25... Bxd6 {[%clk 0:00:48.3]} 26. Rxd6 {[%clk
0:01:58.8]} 26... a5 {[%clk 0:00:42.3]} 27. Rhd1 {[%clk 0:01:49.9]} 27... a4
{[%clk 0:00:43.3]} 28. Bf1 {[%clk 0:01:39.2]} 28... Nb4 {[%clk 0:00:28.6]} 29.
c4 {[%clk 0:01:33.2]} 29... axb3 {[%clk 0:00:23.4]} 30. axb3 {[%clk 0:01:35.1]}
30... Rb8 {[%clk 0:00:22.2]} 31. Kb2 {[%clk 0:01:33.7]} 31... f4 {[%clk
0:00:20.9]} 32. R1d4 {[%clk 0:01:15.3]} 32... Ke7 {[%clk 0:00:20.1]} 33. c5
{[%clk 0:01:02.1]} 33... Kf7 {[%clk 0:00:04.3]} 34. Rxe4 {[%clk 0:01:00.5]}
34... Bd5 {[%clk 0:00:05]} 35. Rxb4 {[%clk 0:00:54.7]} 1-0

[Event "*** Titled Tuesday Blitz"]
[Site "Chess.com"]
[Date "2019.02.05"]
[Round "8"]
[White "DoHoChess"]
[Black "NMJeevanK"]
[Result "0-1"]
[WhiteElo "2599"]
[BlackElo "2365"]
[TimeControl "180+2"]
[EndTime "14:56:30 PST"]
[Termination "NMJeevanK won by resignation"]

1. Nf3 {[%clk 0:03:01.9]} 1... d5 {[%clk 0:03:01]} 2. d4 {[%clk 0:03:01.8]} 2...
Nf6 {[%clk 0:03:01.7]} 3. c4 {[%clk 0:03:02.2]} 3... e6 {[%clk 0:03:03]} 4. Nc3
{[%clk 0:03:03]} 4... c5 {[%clk 0:03:03.9]} 5. cxd5 {[%clk 0:03:04.1]} 5... exd5
{[%clk 0:03:04.6]} 6. g3 {[%clk 0:03:05]} 6... Nc6 {[%clk 0:03:05.8]} 7. Bg2
{[%clk 0:03:04.8]} 7... cxd4 {[%clk 0:03:03.7]} 8. Nxd4 {[%clk 0:03:05.5]} 8...
Bc5 {[%clk 0:03:05.2]} 9. Nb3 {[%clk 0:03:04.6]} 9... Bb4 {[%clk 0:03:05.1]} 10.
O-O {[%clk 0:03:05.3]} 10... Bxc3 {[%clk 0:03:06.5]} 11. bxc3 {[%clk 0:03:06.5]}
11... O-O {[%clk 0:03:08.4]} 12. Be3 {[%clk 0:02:56.8]} 12... Re8 {[%clk
0:03:07.8]} 13. Nd4 {[%clk 0:02:54.6]} 13... Ne4 {[%clk 0:03:04]} 14. Qb3 {[%clk
0:02:31.5]} 14... Nxd4 {[%clk 0:03:03.6]} 15. cxd4 {[%clk 0:02:30.1]} 15... b6
{[%clk 0:03:02.9]} 16. Rac1 {[%clk 0:02:29.8]} 16... Ba6 {[%clk 0:03:03.8]} 17.
Rfe1 {[%clk 0:02:22.1]} 17... Bc4 {[%clk 0:03:04.8]} 18. Qa3 {[%clk 0:02:21.5]}
18... b5 {[%clk 0:03:04.8]} 19. Bf4 {[%clk 0:02:13.9]} 19... Qb6 {[%clk
0:02:58.5]} 20. Rcd1 {[%clk 0:02:07.8]} 20... a5 {[%clk 0:02:55.3]} 21. f3
{[%clk 0:02:06.1]} 21... b4 {[%clk 0:02:56.3]} 22. Qb2 {[%clk 0:01:48.2]} 22...
Nc3 {[%clk 0:02:57.3]} 23. e4 {[%clk 0:01:48.8]} 23... Nxd1 {[%clk 0:02:47.5]}
24. Rxd1 {[%clk 0:01:49.7]} 24... Rac8 {[%clk 0:02:47.1]} 25. Bh3 {[%clk
0:01:49]} 25... Rcd8 {[%clk 0:02:36.9]} 26. e5 {[%clk 0:01:46.3]} 26... a4
{[%clk 0:02:34.4]} 27. Bf5 {[%clk 0:01:37.7]} 27... a3 {[%clk 0:02:23.6]} 28.
Qb1 {[%clk 0:01:29.6]} 28... g6 {[%clk 0:02:24.1]} 29. Bc2 {[%clk 0:01:29.6]}
29... f5 {[%clk 0:02:19.4]} 30. g4 {[%clk 0:01:27.4]} 30... fxg4 {[%clk
0:02:18]} 31. Bg5 {[%clk 0:01:28.1]} 31... gxf3 {[%clk 0:02:13.2]} 32. Bf6
{[%clk 0:01:27.7]} 32... f2+ {[%clk 0:02:02.6]} 33. Kxf2 {[%clk 0:01:26.5]}
33... Rf8 {[%clk 0:02:04.1]} 34. Kg1 {[%clk 0:01:17.1]} 34... Rxf6 {[%clk
0:01:54.4]} 35. exf6 {[%clk 0:01:17.2]} 35... Qxf6 {[%clk 0:01:56.3]} 36. Qxb4
{[%clk 0:01:17.8]} 36... Qg5+ {[%clk 0:01:57.3]} 37. Kh1 {[%clk 0:01:16.6]}
37... Be2 {[%clk 0:01:47.1]} 38. Qxa3 {[%clk 0:01:04.5]} 38... Bxd1 {[%clk
0:00:56.7]} 39. Bxd1 {[%clk 0:01:04.5]} 39... Qd2 {[%clk 0:00:47.3]} 40. Bf3
{[%clk 0:00:53.7]} 40... Re8 {[%clk 0:00:37.7]} 41. Bxd5+ {[%clk 0:00:54.4]}
41... Kh8 {[%clk 0:00:36]} 42. Be4 {[%clk 0:00:51.4]} 42... Qe1+ {[%clk
0:00:35.3]} 0-1

[Event "*** Titled Tuesday Blitz"]
[Site "Chess.com"]
[Date "2019.02.05"]
[Round "8"]
[White "Grischuk"]
[Black "Parhamov"]
[Result "1-0"]
[WhiteElo "3059"]
[BlackElo "2971"]
[TimeControl "180+2"]
[EndTime "14:56:33 PST"]
[Termination "Grischuk won by resignation"]

1. e4 {[%clk 0:03:01.9]} 1... c5 {[%clk 0:02:56.4]} 2. Nf3 {[%clk 0:03:03.1]}
2... Nc6 {[%clk 0:02:57.1]} 3. Bb5 {[%clk 0:03:03.5]} 3... e6 {[%clk 0:02:57.8]}
4. O-O {[%clk 0:03:03.8]} 4... Nge7 {[%clk 0:02:53.5]} 5. d4 {[%clk 0:03:04.7]}
5... cxd4 {[%clk 0:02:54]} 6. Nxd4 {[%clk 0:03:06.6]} 6... a6 {[%clk 0:02:52.4]}
7. Be2 {[%clk 0:03:05.1]} 7... Ng6 {[%clk 0:02:41.5]} 8. Be3 {[%clk 0:03:03.6]}
8... Be7 {[%clk 0:02:36.9]} 9. c4 {[%clk 0:03:04.1]} 9... O-O {[%clk 0:02:37.3]}
10. Nc3 {[%clk 0:03:04.9]} 10... d6 {[%clk 0:02:25.7]} 11. Qd2 {[%clk
0:02:53.6]} 11... Bd7 {[%clk 0:02:26.2]} 12. Rfd1 {[%clk 0:02:51.4]} 12... Rc8
{[%clk 0:02:22.5]} 13. Rac1 {[%clk 0:02:52.5]} 13... Nxd4 {[%clk 0:02:20.4]} 14.
Bxd4 {[%clk 0:02:38.7]} 14... Qc7 {[%clk 0:02:16.3]} 15. Qe3 {[%clk 0:02:24.9]}
15... Qb8 {[%clk 0:02:17.2]} 16. Ba7 {[%clk 0:02:22.7]} 16... Qa8 {[%clk
0:02:18.3]} 17. Bb6 {[%clk 0:02:22.6]} 17... Bc6 {[%clk 0:02:11.3]} 18. f4
{[%clk 0:01:35.1]} 18... Rfe8 {[%clk 0:02:11.4]} 19. b4 {[%clk 0:01:36.2]} 19...
Nf8 {[%clk 0:01:50.3]} 20. b5 {[%clk 0:01:31.5]} 20... Bd7 {[%clk 0:01:45.1]}
21. a4 {[%clk 0:01:31.5]} 21... Qb8 {[%clk 0:01:43.4]} 22. Ba7 {[%clk
0:01:22.3]} 22... Qc7 {[%clk 0:01:44]} 23. Bb6 {[%clk 0:01:22.2]} 23... Qb8
{[%clk 0:01:44.9]} 24. Rc2 {[%clk 0:01:14.5]} 24... Ng6 {[%clk 0:00:59]} 25. g3
{[%clk 0:01:11.5]} 25... Bd8 {[%clk 0:00:56.2]} 26. Rcd2 {[%clk 0:01:04.4]}
26... Bxb6 {[%clk 0:00:49.4]} 27. Qxb6 {[%clk 0:01:06.3]} 27... d5 {[%clk
0:00:50.8]} 28. bxa6 {[%clk 0:00:54.5]} 28... bxa6 {[%clk 0:00:51.6]} 29. Qxb8
{[%clk 0:00:54.5]} 29... Rxb8 {[%clk 0:00:52.7]} 30. cxd5 {[%clk 0:00:56.2]}
30... Rb3 {[%clk 0:00:53.6]} 31. dxe6 {[%clk 0:00:54.7]} 31... Bxe6 {[%clk
0:00:54.5]} 32. Nd5 {[%clk 0:00:53.9]} 32... Bxd5 {[%clk 0:00:52.2]} 33. exd5
{[%clk 0:00:53.5]} 33... a5 {[%clk 0:00:44.2]} 34. d6 {[%clk 0:00:54.5]} 34...
Rd8 {[%clk 0:00:45.1]} 35. Bb5 {[%clk 0:00:52.7]} 35... Nf8 {[%clk 0:00:45.9]}
36. Rc1 {[%clk 0:00:43.8]} 36... g6 {[%clk 0:00:40.4]} 37. d7 {[%clk 0:00:41.7]}
37... Ne6 {[%clk 0:00:41.1]} 38. Rc8 {[%clk 0:00:42.5]} 38... Kf8 {[%clk
0:00:42]} 39. Rxd8+ {[%clk 0:00:42.5]} 39... Nxd8 {[%clk 0:00:43.2]} 40. Re2
{[%clk 0:00:43.8]} 1-0

[Event "*** Titled Tuesday Blitz"]
[Site "Chess.com"]
[Date "2019.02.05"]
[Round "8"]
[White "SuperCheese"]
[Black "idvidal"]
[Result "1-0"]
[WhiteElo "2580"]
[BlackElo "2460"]
[TimeControl "180+2"]
[EndTime "14:56:33 PST"]
[Termination "SuperCheese won on time"]

1. d4 {[%clk 0:02:59.6]} 1... Nf6 {[%clk 0:02:55.9]} 2. c4 {[%clk 0:03:00.6]}
2... e6 {[%clk 0:02:56.6]} 3. Nc3 {[%clk 0:03:01.7]} 3... Bb4 {[%clk 0:02:56.4]}
4. Qc2 {[%clk 0:03:03.2]} 4... O-O {[%clk 0:02:54.2]} 5. Nf3 {[%clk 0:03:04.8]}
5... c5 {[%clk 0:02:54]} 6. dxc5 {[%clk 0:03:04.9]} 6... Na6 {[%clk 0:02:53.8]}
7. g3 {[%clk 0:03:06.5]} 7... Nxc5 {[%clk 0:02:50.4]} 8. Bg2 {[%clk 0:03:07.5]}
8... d5 {[%clk 0:02:51.3]} 9. O-O {[%clk 0:03:03.3]} 9... Bxc3 {[%clk
0:02:38.5]} 10. Qxc3 {[%clk 0:03:02.2]} 10... Nce4 {[%clk 0:02:38.6]} 11. Qd4
{[%clk 0:02:47.2]} 11... b6 {[%clk 0:02:14.6]} 12. Ne5 {[%clk 0:02:10.6]} 12...
Bb7 {[%clk 0:01:56]} 13. Bf4 {[%clk 0:01:57.9]} 13... dxc4 {[%clk 0:01:09.7]}
14. Qxc4 {[%clk 0:01:55.6]} 14... Nd2 {[%clk 0:00:56.9]} 15. Bxd2 {[%clk
0:01:31.5]} 15... Bxg2 {[%clk 0:00:57.6]} 16. Rfd1 {[%clk 0:01:02.5]} 16... Bd5
{[%clk 0:00:55.1]} 17. Qf4 {[%clk 0:01:00.5]} 17... Re8 {[%clk 0:00:41.2]} 18.
f3 {[%clk 0:00:59.4]} 18... Qb8 {[%clk 0:00:21.8]} 19. Bc3 {[%clk 0:00:57.1]}
19... b5 {[%clk 0:00:17.8]} 20. e4 {[%clk 0:00:41.1]} 20... b4 {[%clk
0:00:12.1]} 21. Bd4 {[%clk 0:00:39.3]} 21... Bb7 {[%clk 0:00:11.8]} 22. Qh4
{[%clk 0:00:38]} 22... Rd8 {[%clk 0:00:07.3]} 23. Ng4 {[%clk 0:00:19.1]} 23...
Nxg4 {[%clk 0:00:08.4]} 24. Qxg4 {[%clk 0:00:21]} 24... e5 {[%clk 0:00:09.6]}
25. Be3 {[%clk 0:00:22.1]} 25... Rxd1+ {[%clk 0:00:05.4]} 26. Rxd1 {[%clk
0:00:24]} 26... Qe8 {[%clk 0:00:06.2]} 27. Bh6 {[%clk 0:00:23.9]} 27... g6
{[%clk 0:00:05.3]} 28. Qg5 {[%clk 0:00:24.2]} 28... Qe6 {[%clk 0:00:03.6]} 29.
Rd8+ {[%clk 0:00:24.5]} 1-0